[Event "FIDE WSTC Open 50 2025"]
[Site "Prague"]
[Date "2025.02.23"]
[Round "6.37"]
[White "Wang, Pin"]
[Black "Muir, Andrew J"]
[Result "1-0"]
[Annotator "TA"]
[ECO "B31"]
[WhiteElo "2389"]
[BlackElo "2166"]
[PlyCount "99"]
[EventDate "2025.02.17"]
[EventType "team-tourn"]
[EventCountry "CZE"]
[SourceTitle "playchess.com"]
[Source "ChessBase"]
[SourceQuality "1"]
[TimeControl "40/5400+30:1800+30"]

{[%evp 16,99,22,20,22,23,19,0,0,0,2,0,44,34,33,27,76,63,86,85,102,79,122,112,122,134,128,128,161,160,160,138,166,156,142,154,188,152,304,322,308,311,299,300,298,303,330,318,339,347,357,349,387,373,367,329,333,345,307,318,438,327,324,320,341,340,492,506,507,393,487,465,455,437,494,431,1259,1228,1179,1093,1215,1157,1377,1408,1216,1183]} 1. e4 {[%emt 0:00:04]} c5 {[%emt 0:00:06]} 2. Nf3 {[%emt 0:00:04]} Nc6 {[%emt 0:00:05]} 3. Bb5 {[%emt 0:00:08]} g6 {[%emt 0:00:13]} 4. Bxc6 {[%emt 0:00:12]} dxc6 {[%emt 0:00:08]} 5. d3 {[%emt 0:00:09]} Bg7 {[%emt 0:00:29]} 6. h3 {[%emt 0:00:14]} Nf6 {[%emt 0:00:15]} 7. Nc3 {[%emt 0:00:53]} Nd7 {[%emt 0:00:50] 7...0-0 is not played anymore.} 8. Be3 {[%emt 0:02:10]} e5 {[%emt 0:00:50]} 9. Qd2 {[%emt 0:00:33]} h6 {[%emt 0:00:54] B31: Sicilian: 2...Nc6 3 Bb5 g6.} 10. O-O {[%emt 0:01:51]} b6 {[%emt 0:00:41]} 11. Nh2 {[%emt 0:04:30]} Nf8 {[%emt 0:00:30] The position is equal.} 12. f4 {[%emt 0:00:36]} exf4 {[%emt 0:00:08]} 13. Bxf4 {[%emt 0:00:05]} Be6 {[%emt 0:03:11]} 14. Rae1 {[%emt 0:14:46]} g5 {[%emt 0:11:30]} 15. Bg3 {[%emt 0:05:09]} Qd7 {[%emt 0:06:02]} (15... Qd4+ $11 {should be considered.} 16. Kh1 Ng6) 16. e5 $146 {[%emt 0:07:22]} ({Predecessor:} 16. Kh1 Ng6 17. e5 O-O-O 18. a4 c4 19. a5 Kb7 20. Ne4 Bf8 21. Nd6+ Bxd6 22. exd6 {0-1 Scherler,J (1968)-Bouska,J (2070) Bassano del Grappa Easter op-A 2nd 2022 (4)}) 16... O-O-O {[%emt 0:09:03][%cal Be8c8,Bc8b7,Bb7a8,Ba8b8][%mdl 32] White now steadily converts the win.} 17. Nf3 {[%emt 0:04:41]} Bd5 {[%emt 0:15:24]} 18. Qf2 {[%emt 0:09:28]} Ne6 {[%emt 0:02:30]} 19. Nd2 {[%emt 0:03:00][%csl Of7] White attacks a weakness} Rhf8 {[%emt 0:13:58]} 20. Nde4 {[%emt 0:02:17]} Bxe4 {[%emt 0:09:16]} 21. Nxe4 {[%emt 0:00:29][%cal Bc3e4,Be4d6,Bd6f7,Bf7g5][%mdl 32]} (21. Rxe4 Nd4 $11) 21... Kb7 {[%emt 0:00:43]} 22. Nd6+ {[%emt 0:20:13]} Ka8 {[%emt 0:01:27][%cal Of7f5] [#]} 23. Qxf7 {[%emt 0:01:32][%mdl 512] White has more active pieces.} Rxf7 {[%emt 0:07:33]} (23... Qxf7 24. Rxf7) 24. Rxf7 {[%emt 0:00:06]} Qxf7 {[%emt 0:00:51]} 25. Nxf7 {[%emt 0:00:06]} Rd5 {[%emt 0:02:18]} 26. h4 {[%emt 0:09:29]} Kb8 $2 {[%emt 0:01:48]} (26... gxh4 $16 {was called for.} 27. Bxh4 c4) 27. hxg5 $18 {[%emt 0:00:35]} hxg5 {[%emt 0:00:05] [#]} 28. Nxg5 $1 {[%emt 0:01:30][%mdl 512]} Nc7 {[%emt 0:01:36]} (28... Nxg5 $2 29. e6+ Kc8 30. e7 $18) 29. Kf2 {[%emt 0:07:18]} Kc8 {[%emt 0:00:37]} 30. Bf4 {[%emt 0:01:10]} Rd8 {[%emt 0:01:41]} 31. g3 {[%emt 0:00:44]} Rh8 {[%emt 0:02:13]} 32. Kf3 {[%emt 0:00:24]} Rh2 {[%emt 0:02:06]} 33. Re2 {[%emt 0:00:06]} Rh1 {[%emt 0:00:06]} 34. c3 {[%emt 0:00:49]} Kd8 {[%emt 0:01:09]} 35. d4 {[%emt 0:01:48]} cxd4 {[%emt 0:00:22]} 36. cxd4 {[%emt 0:00:01]} Ke7 {[%emt 0:01:33]} 37. Rc2 {[%emt 0:01:32]} Nb5 {[%emt 0:00:23]} 38. Be3 {[%emt 0:00:31]} ({Not} 38. Rxc6 Nxd4+ 39. Kg2 Nxc6 $14) 38... Kd7 {[%emt 0:03:16]} 39. a4 {[%emt 0:01:48]} Nc7 {[%emt 0:00:28]} 40. e6+ {[%emt 0:00:16]} Ke7 {[%emt 0:03:18]} (40... Nxe6 $142 41. Nxe6 Kxe6 42. Rxc6+ Kd7) 41. Rxc6 {[%emt 0:30:57]} Nd5 {[%emt 0:30:10]} 42. Bf2 {[%emt 0:00:00]} Rd1 {[%emt 0:00:00]} 43. Ke4 {[%emt 0:00:00] White is clearly winning.} Nf6+ {[%emt 0:00:00]} 44. Kf5 {[%emt 0:00:00]} Nd5 {[%emt 0:00:00] Repels Rc7+} 45. Ne4 {[%emt 0:00:00]} Bxd4 {[%emt 0:00:00]} (45... Rf1 $142 46. Kg6 Bh8) 46. Bxd4 {[%emt 0:00:00]} Rxd4 {[%emt 0:00:00]} 47. Ke5 {[%emt 0:00:00]} Rd1 {[%emt 0:00:00]} 48. g4 {[%emt 0:00:00] Black must now prevent Nd6.} Nb4 {[%emt 0:00:00]} 49. Rc7+ {[%emt 0:00:00]} Kd8 {[%emt 0:00:00]} 50. e7+ {[%emt 0:00:00] Weighted Error Value: White=0.13 (very precise) /Black=0.52  Mistake:       	---       	Black=4      Inaccurate:     	---       	Black=3      OK:         	White=16    	Black=12     Best:        	White=3     	Black=2} (50. Rxa7 $2 {loses.} Nc6+ 51. Kf6 Nxa7 $19) 1-0

[Event "FIDE WSTC Open 50 2025"]
[Site "Prague"]
[Date "2025.02.23"]
[Round "6.38"]
[White "Neave, George"]
[Black "Ning, Chunhong"]
[Result "1/2-1/2"]
[Annotator "ChessBase"]
[ECO "D35"]
[WhiteElo "2074"]
[BlackElo "2257"]
[PlyCount "41"]
[EventDate "2025.02.17"]
[EventType "team-tourn"]
[EventCountry "CZE"]
[SourceTitle "playchess.com"]
[Source "ChessBase"]
[SourceQuality "1"]
[TimeControl "40/5400+30:1800+30"]

1. d4 {[%emt 0:00:19]} d5 {[%emt 0:00:34]} 2. c4 {[%emt 0:00:07]} e6 {[%emt 0:00:04]} 3. Nc3 {[%emt 0:00:09]} Nf6 {[%emt 0:00:20]} 4. cxd5 {[%emt 0:00:20]} exd5 {[%emt 0:00:14]} 5. Bg5 {[%emt 0:00:20]} c6 {[%emt 0:00:46]} 6. e3 {[%emt 0:00:12]} Be7 {[%emt 0:04:55]} 7. Bd3 {[%emt 0:00:19]} O-O {[%emt 0:08:05]} 8. Nge2 {[%emt 0:00:22]} Nbd7 {[%emt 0:03:22]} 9. O-O {[%emt 0:00:53]} Re8 {[%emt 0:05:01]} 10. Qc2 {[%emt 0:05:12]} Nf8 {[%emt 0:01:52]} 11. f3 {[%emt 0:02:39]} h6 {[%emt 0:16:54]} 12. Bh4 {[%emt 0:00:57]} Ne6 {[%emt 0:00:42]} 13. Rad1 {[%emt 0:01:30]} b6 {[%emt 0:03:44]} 14. Kh1 {[%emt 0:08:36]} Bb7 {[%emt 0:01:49]} 15. Qd2 {[%emt 0:06:13]} b5 {[%emt 0:10:59]} 16. Bf2 {[%emt 0:17:56]} b4 {[%emt 0:00:48]} 17. Na4 {[%emt 0:00:27]} Qa5 {[%emt 0:01:43]} 18. b3 {[%emt 0:01:41]} c5 {[%emt 0:02:04]} 19. Nxc5 {[%emt 0:01:59]} Nxc5 {[%emt 0:00:17]} 20. dxc5 {[%emt 0:00:04]} Bxc5 {[%emt 0:00:06]} 21. Nd4 {[%emt 0:01:38]} 1/2-1/2

[Event "FIDE WSTC Open 50 2025"]
[Site "Prague"]
[Date "2025.02.23"]
[Round "6.39"]
[White "Guo, Yun"]
[Black "Robertson, Ian C."]
[Result "1/2-1/2"]
[Annotator "ChessBase"]
[ECO "C41"]
[WhiteElo "2213"]
[BlackElo "2064"]
[PlyCount "38"]
[EventDate "2025.02.17"]
[EventType "team-tourn"]
[EventCountry "CZE"]
[SourceTitle "playchess.com"]
[Source "ChessBase"]
[SourceQuality "1"]
[TimeControl "40/5400+30:1800+30"]

1. e4 {[%emt 0:00:03]} e5 {[%emt 0:00:10]} 2. Nf3 {[%emt 0:00:13]} d6 {[%emt 0:00:09]} 3. d4 {[%emt 0:01:11]} exd4 {[%emt 0:00:52]} 4. Nxd4 {[%emt 0:00:02]} Nf6 {[%emt 0:00:12]} 5. Nc3 {[%emt 0:00:02]} Be7 {[%emt 0:00:30]} 6. Be2 {[%emt 0:04:33]} O-O {[%emt 0:01:11]} 7. O-O {[%emt 0:00:05]} a6 {[%emt 0:03:47]} 8. a4 {[%emt 0:00:29]} Re8 {[%emt 0:04:04]} 9. f4 {[%emt 0:12:41]} Bf8 {[%emt 0:08:59]} 10. Bf3 {[%emt 0:00:13]} c5 {[%emt 0:00:14]} 11. Nde2 {[%emt 0:07:18]} Nc6 {[%emt 0:06:32]} 12. h3 {[%emt 0:00:19]} Qb6 {[%emt 0:07:40]} 13. Kh2 {[%emt 0:03:45]} Be6 {[%emt 0:13:02]} 14. b3 {[%emt 0:16:54]} Rad8 {[%emt 0:12:35]} 15. f5 {[%emt 0:02:31]} Bd7 {[%emt 0:02:34]} 16. Nf4 {[%emt 0:02:31]} Nb4 {[%emt 0:00:50]} 17. Nfd5 {[%emt 0:10:38]} Nbxd5 {[%emt 0:01:13]} 18. Nxd5 {[%emt 0:00:12]} Nxd5 {[%emt 0:00:11]} 19. Qxd5 {[%emt 0:00:14]} Bc6 {[%emt 0:00:47]} 1/2-1/2

[Event "FIDE WSTC Open 50 2025"]
[Site "Prague"]
[Date "2025.02.23"]
[Round "6.40"]
[White "Sanger, Mark"]
[Black "Liu, Shilan"]
[Result "0-1"]
[Annotator "RC"]
[ECO "B23"]
[WhiteElo "2135"]
[BlackElo "2093"]
[PlyCount "82"]
[EventDate "2025.02.17"]
[EventType "team-tourn"]
[EventCountry "CZE"]
[SourceTitle "playchess.com"]
[Source "ChessBase"]
[SourceQuality "1"]
[TimeControl "40/5400+30:1800+30"]

1. e4 {[%emt 0:00:05]} c5 {[%emt 0:00:07]} 2. Nc3 {[%emt 0:00:06]} Nc6 {[%emt 0:00:30]} 3. f4 {[%emt 0:00:09]} e6 {[%emt 0:07:45]} 4. Nf3 {[%emt 0:00:20]} d5 {[%emt 0:02:20]} 5. e5 {[%emt 0:01:22]} Nge7 {[%emt 0:02:30]} 6. d4 {[%emt 0:01:01]} Nxd4 {[%emt 0:01:31]} 7. Nxd4 {[%emt 0:00:09]} cxd4 {[%emt 0:00:07]} 8. Qxd4 {[%emt 0:00:10]} Bd7 {[%emt 0:05:19]} 9. Bd3 {[%emt 0:07:42]} Nc6 {[%emt 0:04:51]} 10. Qf2 {[%emt 0:02:47]} Bb4 {[%emt 0:05:21]} 11. O-O {[%emt 0:04:07]} O-O {[%emt 0:01:23]} 12. Qg3 {[%emt 0:13:42]} Bc5+ {[%emt 0:02:06]} 13. Kh1 {[%emt 0:00:07]} f5 {[%emt 0:00:19]} 14. exf6 {[%emt 0:06:12]} Qxf6 {[%emt 0:04:12]} 15. Qh3 {[%emt 0:02:37]} Qh6 {[%emt 0:00:44]} 16. Qxh6 {[%emt 0:01:29]} gxh6 {[%emt 0:00:03]} 17. f5 {[%emt 0:00:52]} h5 {[%emt 0:11:20]} 18. Bh6 {[%emt 0:04:06]} Rf7 {[%emt 0:00:19]} 19. Rae1 {[%emt 0:09:56]} Re8 {[%emt 0:02:46]} 20. Rf3 {[%emt 0:07:14]} Nb4 {[%emt 0:17:07]} 21. fxe6 {[%emt 0:07:17]} Rxf3 {[%emt 0:01:04]} 22. gxf3 {[%emt 0:00:20]} Nxd3 {[%emt 0:00:25]} 23. cxd3 {[%emt 0:00:32]} Rxe6 {[%emt 0:00:07]} 24. Rxe6 {[%emt 0:00:30]} Bxe6 {[%emt 0:00:08]} 25. Kg2 {[%emt 0:02:25]} Kf7 {[%emt 0:01:54]} 26. Nb5 {[%emt 0:05:25]} d4 {[%emt 0:06:29]} 27. Bf4 {[%emt 0:07:09]} Bxa2 {[%emt 0:00:09]} 28. Nd6+ {[%emt 0:00:15]} Ke6 {[%emt 0:03:40]} 29. Nxb7 {[%emt 0:00:39]} Bb6 {[%emt 0:00:08]} 30. b4 {[%emt 0:06:57]} Bb1 {[%emt 0:00:10]} 31. Kf2 {[%emt 0:02:55]} Bxd3 {[%emt 0:00:09]} 32. Nc5+ {[%emt 0:02:51]} Bxc5 {[%emt 0:00:06]} 33. bxc5 {[%emt 0:00:04]} Kd5 {[%emt 0:00:07]} 34. Bd6 {[%emt 0:00:34]} a5 {[%emt 0:00:12]} 35. Ke1 {[%emt 0:01:45]} a4 {[%emt 0:00:22]} 36. Kd2 {[%emt 0:00:13]} a3 {[%emt 0:01:01]} 37. Kc1 {[%emt 0:00:08]} Kc6 {[%emt 0:00:25]} 38. Bf8 {[%emt 0:00:31]} Bf5 {[%emt 0:00:22]} 39. f4 {[%emt 0:00:50]} h4 {[%emt 0:00:39]} 40. Be7 {[%emt 0:02:03]} h3 {[%emt 0:00:08]} 41. Bf8 {[%emt 0:30:14]} a2 {[%emt 0:30:57]} 0-1

[Event "FIDE WSTC Open 50 2025"]
[Site "Prague"]
[Date "2025.02.24"]
[Round "7.1"]
[White "Ehlvest, Jaan"]
[Black "David, Alberto"]
[Result "1/2-1/2"]
[Annotator "TA"]
[ECO "B10"]
[WhiteElo "2531"]
[BlackElo "2467"]
[PlyCount "39"]
[EventDate "2025.02.17"]
[EventType "team-tourn"]
[EventCountry "CZE"]
[SourceTitle "playchess.com"]
[Source "ChessBase"]
[SourceQuality "1"]
[TimeControl "40/5400+30:1800+30"]

{[%evp 9,39,26,31,30,29,27,28,19,31,20,16,16,16,23,25,23,20,22,29,24,37,25,41,41,47,30,53,29,32,0,55,0]} 1. e4 {[%emt 0:03:28]} c6 {[%emt 0:00:15]} 2. Nf3 {[%emt 0:00:06]} d5 {[%emt 0:00:13]} 3. d3 {[%emt 0:00:04]} Bg4 {[%emt 0:14:10]} 4. h3 {[%emt 0:00:11]} Bxf3 {[%emt 0:00:04]} 5. Qxf3 {[%emt 0:00:06]} e6 {[%emt 0:00:04]} 6. Nd2 {[%emt 0:03:21] B10: Caro-Kann: 2 d3 and 2 c4.} Nf6 {[%emt 0:01:46]} 7. Be2 {[%emt 0:04:30]} Bd6 {[%emt 0:05:35]} 8. d4 {[%emt 0:01:21] [#] e5 would now be deadly. White has an edge.} dxe4 {[%emt 0:00:22]} 9. Nxe4 {[%emt 0:00:04]} Nxe4 {[%emt 0:00:11]} 10. Qxe4 {[%emt 0:00:04]} Nd7 {[%emt 0:03:30]} 11. O-O {[%emt 0:00:28]} Nf6 {[%emt 0:00:14]} 12. Qf3 {[%emt 0:00:35]} O-O {[%emt 0:00:39]} 13. a4 {[%emt 0:00:12]} a5 {[%emt 0:02:23]} 14. c3 {[%emt 0:01:14]} h6 $146 {[%emt 0:08:22]} ({Predecessor:} 14... Nd5 15. g3 Qf6 16. Re1 Rfe8 17. Qxf6 Nxf6 18. Bc4 Kf8 19. Kg2 Re7 20. Be3 Nd5 {½-½ Nakamura,H (2795)-Murzin,V (2534) Wch Rapid Almaty 2022 (8)}) 15. g3 {[%emt 0:00:43]} Bc7 {[%emt 0:02:36]} 16. Bc4 {[%emt 0:00:48]} Rb8 {[%emt 0:02:56]} 17. Bb3 {[%emt 0:17:08]} Nd5 {[%emt 0:08:41]} 18. Bc2 {[%emt 0:00:38]} Nf6 {[%emt 0:00:14]} 19. Bb3 {[%emt 0:08:10]} Nd5 {[%emt 0:00:07]} 20. Bc2 {Weighted Error Value: White=0.07 (flawless) /Black=0.06 (flawless)   Mistake:       	White=1     	---        OK:         	White=5     	Black=4} ({White should play} 20. Bd2 $14) 1/2-1/2

[Event "FIDE WSTC Open 50 2025"]
[Site "Prague"]
[Date "2025.02.24"]
[Round "7.2"]
[White "Godena, Michele"]
[Black "Kaidanov, Gregory"]
[Result "1-0"]
[Annotator "TA"]
[ECO "B22"]
[WhiteElo "2439"]
[BlackElo "2513"]
[PlyCount "119"]
[EventDate "2025.02.17"]
[EventType "team-tourn"]
[EventCountry "CZE"]
[SourceTitle "playchess.com"]
[Source "ChessBase"]
[SourceQuality "1"]
[TimeControl "40/5400+30:1800+30"]

{[%evp 16,119,27,24,44,39,42,57,66,44,101,97,102,106,100,85,90,88,97,70,108,120,112,97,91,65,119,114,148,49,113,130,130,130,121,50,56,23,153,61,116,118,110,107,103,108,99,93,130,0,107,0,141,124,140,68,93,11,11,0,31,16,8,8,10,12,76,76,100,33,23,16,22,24,320,316,303,297,297,247,237,0,277,0,254,252,639,639,640,621,711,714,697,692,4960,4943,5414,5011,29966,29958,29969,29970,29964,29962,29962,29944]} 1. e4 {[%emt 0:00:03][%cal Be2e4,Be4e5][%mdl 32]} c5 {[%emt 0:00:14]} 2. c3 {[%emt 0:03:09]} Nf6 {[%emt 0:00:08]} 3. e5 {[%emt 0:00:07]} Nd5 {[%emt 0:00:04]} 4. Bc4 {[%emt 0:15:42][%cal Bf1c4,Bc4b3,Bb3c2,Bc2e4][%mdl 32]} Nb6 {[%emt 0:00:34]} 5. Bb3 {[%emt 0:00:39]} c4 {[%emt 0:01:16]} 6. Bc2 {[%emt 0:00:15]} d6 {[%emt 0:00:49]} 7. exd6 {[%emt 0:00:18]} Qxd6 {[%emt 0:03:02]} 8. Nf3 {[%emt 0:02:49]} Nc6 {[%emt 0:01:04]} 9. O-O {[%emt 0:00:49]} Bg4 {[%emt 0:00:17] B22: Sicilian: 2 c3.} 10. Re1 $1 {[%emt 0:04:42] 10.Re1 is better than 10.h3. Prevents Ne5.} Qf6 {[%emt 0:10:00]} 11. Be4 $1 {[%emt 0:02:52][%csl Of8] Black has a bad bishop} O-O-O {[%emt 0:10:18] White is slightly better.} 12. Qe2 {[%emt 0:01:33]} Ne5 {[%emt 0:12:47] [#]} (12... Bh5 $14) 13. Bxb7+ $1 $16 {[%emt 0:01:10][%mdl 512]} Kxb7 {[%emt 0:00:05]} 14. Qe4+ $146 {[%emt 0:00:10]} (14. Qxe5 $6 Bxf3 15. gxf3 Qxf3 $15) (14. Qxe5 Bxf3 15. Qxf6 exf6 16. gxf3 Bc5 17. b4 Bd6 18. a4 Rhe8 19. Rf1 Re5 20. a5 {0-1 Romero Ruscalleda,J (2153)-Baltaci,I (2084) Titled Tuesday intern op 11th Jun Late blitz 2024 (11)}) 14... Qc6 {[%emt 0:00:16] A sharp opening} 15. Nxe5 {[%emt 0:00:32]} (15. Qxe5 $6 Bxf3 16. gxf3 Qxf3 $11) 15... Qxe4 {[%emt 0:00:07]} 16. Rxe4 {[%emt 0:00:04][%cal Be1e4,Be4f4,Bf4f5,Bf5g5,Bg5h5][%mdl 32]} Be6 {[%emt 0:00:12]} 17. b3 {[%emt 0:20:48]} cxb3 {[%emt 0:06:34]} 18. axb3 {[%emt 0:00:07]} Bxb3 {[%emt 0:00:06]} 19. c4 {[%emt 0:06:21]} f5 {[%emt 0:01:01]} 20. Rf4 {[%emt 0:10:59][%cal Oe5f7]} (20. Nf7 {simplifies} fxe4 21. Nxd8+ Kc8 22. Nf7) 20... g5 {[%emt 0:08:04]} (20... g6 $14) 21. Rxf5 {[%emt 0:02:34][%cal Oa1a7]} Bg7 {[%emt 0:05:32]} 22. Nc3 {[%emt 0:03:37]} (22. Rxg5 $6 Bf6 23. Rh5 Bd1 $14 (23... Nxc4 24. Nxc4 Bxc4 25. Ra4 $11)) (22. Na3 $1 $16) 22... Bxc4 {[%emt 0:08:28]} (22... h6 $14 23. Rf7 Bxe5 24. Rxe7+ Kc6 25. Rxe5 Rhe8 26. Rxe8 Rxe8) 23. Rxg5 {[%emt 0:05:02]} Bf6 {[%emt 0:04:05]} 24. Rh5 {[%emt 0:01:04]} Be6 {[%emt 0:04:35]} 25. Ne4 {[%emt 0:03:30] A dynamic duo of knights.} (25. h3 $16) 25... Rd5 $1 $14 {[%emt 0:02:06]} 26. Bb2 {[%emt 0:08:49]} h6 {[%emt 0:02:26]} (26... Nc4 $11 27. Nxc4 (27. Nxf6 exf6 28. Nxc4 Rxh5 $11) 27... Rxh5) 27. d4 {[%emt 0:03:20] White is more active.} (27. f4 $16) 27... Bxe5 {[%emt 0:05:49]} ({Black should play} 27... Nc4 $14) 28. Rxe5 $16 {[%emt 0:01:00]} (28. dxe5 Nc4 $18) 28... Rxe5 {[%emt 0:00:17]} 29. dxe5 {[%emt 0:00:02] and Nc5+ should not be overlooked} Bd5 {[%emt 0:01:19]} 30. Nc5+ {[%emt 0:00:27]} Kc6 {[%emt 0:00:21]} 31. Nd3 {[%emt 0:02:19]} Kb7 {[%emt 0:00:03]} 32. Nc5+ {[%emt 0:00:07]} Kc6 {[%emt 0:00:02]} 33. Nd3 {[%emt 0:00:10]} Kb7 $1 {[%emt 0:00:03]} 34. Ba3 {[%emt 0:00:58]} e6 {[%emt 0:00:49]} 35. Bd6 {[%emt 0:00:17]} (35. Bc5 $16) 35... Nc4 {[%emt 0:00:30]} 36. Bc5 {[%emt 0:01:29]} (36. Rb1+ $16 Ka8 37. Ra1) 36... a5 $11 {[%emt 0:00:09]} 37. f4 {[%emt 0:00:33]} Ra8 {[%emt 0:00:28]} 38. g4 {[%emt 0:00:26][%cal Bg2g4,Bg4g5][%mdl 32]} Kc6 {[%emt 0:01:16]} 39. Bf2 {[%emt 0:00:32]} Rg8 {[%emt 0:00:38]} 40. h3 {[%emt 0:00:22]} h5 {[%emt 0:00:12]} (40... Rb8 $11 {remains equal.}) 41. g5 $16 {[%emt 0:03:26]} Rb8 {[%emt 0:05:04] [#]} 42. f5 {[%emt 0:08:58]} Be4 $1 $14 {[%emt 0:05:16]} 43. Nf4 {[%emt 0:00:41]} Bxf5 {[%emt 0:00:47]} 44. Rc1 {[%emt 0:03:19]} Kb5 {[%emt 0:06:27][%mdl 8192] [#]} (44... Rb1 $11 45. Rxb1 Bxb1) 45. Nxe6 $1 $18 {[%emt 0:02:27]} Rg8 {[%emt 0:08:35]} (45... Bxe6 46. Rb1+) 46. Nc7+ {[%emt 0:12:35]} ({Much less strong is} 46. Nd4+ Ka6 47. h4 (47. Nxf5 Rxg5+ 48. Kf1 Nd2+ 49. Ke2 Rxf5 $18) 47... Bd3 $18) 46... Kb4 {[%emt 0:00:07]} 47. Nd5+ {[%emt 0:00:02]} Kb5 {[%emt 0:00:06]} 48. Nc7+ {[%emt 0:00:02]} Kb4 {[%emt 0:00:06]} 49. Nd5+ {[%emt 0:00:02]} Kb5 {[%emt 0:00:07]} 50. h4 {[%emt 0:00:01]} Rd8 $2 {[%emt 0:04:38]} (50... Rc8 51. Ne7 Rf8 52. Nxf5 (52. g6 Bxg6 53. Re1 Bc2 $11) 52... Rxf5) 51. Nc7+ {[%emt 0:00:51]} Kb4 {[%emt 0:00:06]} 52. e6 {[%emt 0:00:16][%cal Be5e6,Be6e7][%mdl 32]} Rc8 {[%emt 0:00:29]} 53. Nd5+ {[%emt 0:02:53]} Kb5 {[%emt 0:00:36]} 54. Ne7 {[%emt 0:00:42][%cal Oe7f5]} Rf8 {[%emt 0:00:35]} 55. Nxf5 {[%emt 0:00:06]} Rxf5 {[%emt 0:00:04]} 56. e7 {[%emt 0:00:26]} Re5 {[%emt 0:01:01]} 57. Re1 {[%emt 0:00:10] White mates.} Rxe1+ {[%emt 0:00:11]} 58. Bxe1 {[%emt 0:00:02]} Nd6 {[%emt 0:00:06]} 59. Bg3 {[%emt 0:00:11]} Ne8 {[%emt 0:00:07]} 60. Be5 {[%emt 0:00:35] Weighted Error Value: White=0.35/Black=0.53  Loses game:     	---       	Black=1      Mistake:       	White=6     	Black=7      Inaccurate:     	White=1     	Black=3      OK:         	White=10    	Black=9      Best:        	White=3     	Black=8      Strong:       	White=1     	Black=3      Brilliant:      	White=2     	---} 1-0

[Event "FIDE WSTC Open 50 2025"]
[Site "Prague"]
[Date "2025.02.24"]
[Round "7.3"]
[White "Shabalov, Alexander"]
[Black "Bellini, Fabio"]
[Result "1-0"]
[Annotator "TA"]
[ECO "C65"]
[WhiteElo "2471"]
[BlackElo "2408"]
[PlyCount "81"]
[EventDate "2025.02.17"]
[EventType "team-tourn"]
[EventCountry "CZE"]
[SourceTitle "playchess.com"]
[Source "ChessBase"]
[SourceQuality "1"]
[TimeControl "40/5400+30:1800+30"]

{[%evp 9,81,6,14,0,13,14,14,13,19,5,11,-7,0,-9,24,25,37,21,22,18,17,8,28,28,22,19,11,17,21,8,23,0,14,0,0,0,0,0,0,0,0,0,0,0,0,0,0,0,42,53,148,133,222,172,257,268,301,287,287,273,359,349,402,415,402,385,454,435,486,478,658,658,647,636]} 1. e4 {[%emt 0:00:06]} e5 {[%emt 0:00:15]} 2. Nf3 {[%emt 0:00:06]} Nc6 {[%emt 0:00:09]} 3. Bb5 {[%emt 0:00:36]} Nf6 {[%emt 0:00:33]} 4. d3 {[%emt 0:02:52]} Bc5 {[%emt 0:02:02]} 5. c3 {[%emt 0:00:22]} O-O {[%emt 0:03:28]} 6. Bg5 {[%emt 0:01:48] C65: Ruy Lopez: Berlin Defence (3...Nf6), unusual lines and 4 0-0 Bc5.} h6 {[%emt 0:12:01]} 7. Bh4 {[%emt 0:00:09]} Be7 {[%emt 0:00:51]} 8. O-O {[%emt 0:08:10] The position is equal.} d6 {[%emt 0:01:34]} 9. Re1 $146 {[%emt 0:00:28]} ({Predecessor:} 9. Bg3 a6 10. Ba4 Nh5 11. Nbd2 Nxg3 12. hxg3 Nb8 13. d4 Bf6 14. Re1 g6 15. Nf1 {½-½ Rapport,R (2715)-Vidit,S (2721) Tashkent UzChess Masters 2024 (6)}) 9... Nh5 {[%emt 0:10:09]} 10. Bg3 {[%emt 0:00:50]} Nxg3 {[%emt 0:02:13]} 11. hxg3 {[%emt 0:00:05]} f5 {[%emt 0:06:14]} 12. exf5 {[%emt 0:04:05]} Bxf5 {[%emt 0:00:22]} 13. Nbd2 {[%emt 0:01:06]} Bf6 {[%emt 0:05:23]} 14. d4 {[%emt 0:08:09]} exd4 {[%emt 0:02:39]} 15. Nb3 {[%emt 0:00:12]} d3 {[%emt 0:07:36]} 16. Bxd3 {[%emt 0:02:01]} Qd7 {[%emt 0:02:40]} 17. Qc2 {[%emt 0:02:22]} Bxd3 {[%emt 0:00:38]} 18. Qxd3 {[%emt 0:00:02]} Qf7 {[%emt 0:01:58]} 19. Re2 {[%emt 0:11:57]} a6 {[%emt 0:03:44]} 20. Rae1 {[%emt 0:00:58]} Rfe8 {[%emt 0:01:44]} 21. Kf1 {[%emt 0:09:20]} Rxe2 {[%emt 0:07:07]} 22. Rxe2 {[%emt 0:00:06]} Re8 {[%emt 0:00:32]} 23. Rxe8+ {[%emt 0:00:49]} Qxe8 {[%emt 0:00:01]} 24. Nbd2 {[%emt 0:00:34]} Qe6 {[%emt 0:03:36]} 25. a3 {[%emt 0:01:16]} b5 {[%emt 0:04:13]} 26. a4 {[%emt 0:02:49]} Ne5 {[%emt 0:02:30]} 27. Qe2 {[%emt 0:19:01]} bxa4 {[%emt 0:02:23]} 28. Qxa6 {[%emt 0:03:24]} Nxf3 {[%emt 0:10:11]} 29. gxf3 $11 {[%emt 0:00:50][%mdl 4096] Endgame KQB-KQN} Qd5 {[%emt 0:02:45]} (29... Qa2 $14) 30. Ne4 $16 {[%emt 0:02:57]} Qd1+ {[%emt 0:01:45]} 31. Kg2 {[%emt 0:00:02]} Be7 {[%emt 0:00:17]} (31... Kh7 {was necessary.} 32. Qc8 Be5 33. Qf5+ (33. Qxc7 Qb1 $16) 33... Kg8 34. Qe6+ Kh7) 32. Qc8+ $18 {[%emt 0:00:44]} Kf7 {[%emt 0:00:38]} 33. Qxc7 {[%emt 0:00:29]} Qd5 {[%emt 0:02:17]} 34. Qd7 {[%emt 0:00:49]} Qe5 {[%emt 0:01:08]} 35. Qxa4 {[%emt 0:00:40]} d5 {[%emt 0:00:47]} 36. Qb5 {[%emt 0:01:16]} Qe6 {[%emt 0:00:44]} 37. Nc5 {[%emt 0:01:13]} Qf5 {[%emt 0:00:45]} 38. Na4 {[%emt 0:03:17] White is clearly winning.} Bd6 {[%emt 0:00:58]} 39. Nb6 {[%emt 0:00:14]} Bxg3 {[%emt 0:00:33]} 40. fxg3 {[%emt 0:01:20]} Qc2+ {[%emt 0:00:09]} 41. Kf1 {[%emt 0:30:08] Weighted Error Value: White=0.04 (flawless) /Black=0.28 (precise)   Mistake:       	---       	Black=2      Inaccurate:     	---       	Black=4      OK:         	White=14    	Black=16     Best:        	White=2     	Black=1} 1-0